{"text_format":"1","workbook":"xlsx","n_sheets":2,"sheets":["Stock","Lists"],"not_rendered":{"charts":0,"images":0,"macros":1,"external_links":0,"defined_names":2,"comments":1,"pivot_tables":0},"unopened":[],"bounds":{"document_bytes":16777216,"sheet_cells":100000,"rows_first":2000,"rows_last":500,"rows_between":2000,"halvings":0,"cell_chars":16384,"cell_head_chars":4096},"cells_cut":0,"cells_raw":0,"read":"whole","date_system":"1900"}

{"sheet":"Stock","index":0,"n_rows":207,"n_cols":20,"rows_kept":207,"cut":false,"hidden":false,"merged":[]}
[]
[null,"Shopping -  Stock Check"]
[]
[]
[]
[null,"Product List","Grams","ml","Location","Stock","Re-Stock","Test","Buy From"]
[null,"Alpen",210,"-","Cupboard 1",1,0,{"$f":"IF(F7-G7>0,1,0)","v":1},"Lidl"]
[null,"Ariel Wash Tablets 36","-","-","Cupboard 4",24,4,1,"Sainsbury"]
[null,"Baguettes X4","-","-","Pantry",1,0,1,"Toms Bakery"]
[null,"Baked Beans Heinz X4",100,"-","Cupboard 2",3,2,1,"Tesco"]
[null,"Bananas  X8","-","-","Cupboard 5",3,4,0,"Farm Shop"]
[null,"Bank  £10  X3 = £30","-","-","Purse Wallet",3,3,0,"Barclays"]
[null,"Batteries AA 12 pack","-","-","Cupboard 4",5,2,1,"Tesco"]
[null,"Beer  8 Pack","-","-","Garage Shed",6,3,1,"Lidl"]
[null,"Biscuits Various","-","-","Cupboard 1",1,0,1,"Sainsbury"]
[null,"Black Pepper Whole",25,"-","Cupboard 3",1,0,1,"The Spice Rack"]
[null,"Bleach Domestos","-",250,"Bathroom",0,0,0,"Lidl"]
[null,"Bread Rolls X12","-","-","Pantry",6,4,1,"Toms Bakery"]
[null,"Brussel Sproughts",200,"-","Cupboard 5",1,0,1,"Market"]
[null,"Bucket","-","-","Garage Shed",1,0,1,"Market"]
[null,"Butter Unsalted",200,"-","Fridge",1,0,1,"Sainsbury"]
[null,"Cadbury Chocolate Drink",200,"-","Cupboard 2",1,0,1,"Tesco"]
[null,"Carrots ",500,"-","Cupboard 5",1,0,1,"Market"]
[null,"Chicken Breast Skinned",320,"-","Freezer",1,0,1,"Tesco"]
[null,"Chicken Thighs Fresh",600,"-","Freezer",1,0,1,"Sainsbury"]
[null,"Chicken Whole Fresh",2000,"-","Freezer",1,1,0,"Sainsbury"]
[null,"Chips Frozen McCain",2000,"-","Freezer",2,1,1,"Tesco"]
[null,"Chocolate","-","-","Cupboard 4",1,0,1,"Tesco"]
[null,"Cinnamon Sticks",10,"-","Cupboard 3",5,1,1,"The Spice Rack"]
[null,"Cod Fillets X4","-","-","Freezer",4,0,1,"Co-Op"]
[null,"Coffee Nescafe Alta Rica",400,"-","Cupboard 1",0,0,0,"Tesco"]
[null,"Condoms","-","-","Purse Wallet",2,2,0,"Chemist"]
[null,"Cornflakes",1000,"-","Cupboard 1",1,0,1,"Tesco"]
[null,"Cotton Buds X100","-","-","Bathroom",0,0,0,"Lidl"]
[null,"Courgettes X2","-","-","Cupboard 5",1,0,1,"Market"]
[null,"Cucumber Half","-","-","Fridge",1,0,1,"Market"]
[null,"Dettol Power Spray","-",720,"Cupboard 4",1,0,1,"Sainsbury"]
[null,"Fairy Liquid","-",300,"Cupboard 4",1,0,1,"Sainsbury"]
[null,"Fig Rolls",200,"-","Cupboard 1",2,1,1,"Sainsbury"]
[null,"Flour Plain",1000,"-","Cupboard 3",0,0,0,"Tesco"]
[null,"Flour Self Raising",1000,"-","Cupboard 3",1,0,1,"Tesco"]
[null,"French Stick","-","-","Pantry",1,0,1,"Toms Bakery"]
[null,"Ham Joint",2000,"-","Fridge",0,0,0,"Lidl"]
[null,"Ham Sliced",200,"-","Fridge",5,2,1,"Tesco"]
[null,"Hand Soap","-",250,"Bathroom",1,0,1,"Sainsbury"]
[null,"Johnson Baby Oil ","-",200,"Bathroom",1,0,1,"Lidl"]
[null,"Johnsons Baby Lotion","-",200,"Bathroom",0,0,0,"Lidl"]
[null,"Kidney Beans Dried",500,"-","Cupboard 3",1,0,1,"Sainsbury"]
[null,"Leeks",500,"-","Cupboard 5",1,0,1,"Market"]
[null,"Lettuce Iceburg","-","-","Cupboard 5",1,0,1,"Market"]
[null,"Light Bulbs","-","-","Cupboard 4",3,2,1,"Lidl"]
[null,"Mango  X4","-","-","Cupboard 5",3,1,1,"Market"]
[null,"Milk Semi  Cravendale","-",2000,"Fridge",1,0,1,"Tesco"]
[null,"Mr Kiplings Lemon Slice","-","-","Cupboard 1",1,1,0,"Sainsbury"]
[null,"Oil Olive","-",200,"Cupboard 3",0,0,0,"Lidl"]
[null,"Oil Vegetable","-",200,"Cupboard 3",1,0,1,"Lidl"]
[null,"Onions ",300,"-","Cupboard 5",1,0,1,"Market"]
[null,"Oxo Beef Cube 12","-","-","Cupboard 3",4,4,0,"Tesco"]
[null,"Oxo Chick Cube X6","-","-","Cupboard 3",3,3,0,"Tesco"]
[null,"Oxo Veg Cube X6","-","-","Cupboard 3",12,1,1,"Tesco"]
[null,"Papaya","-","-","Cupboard 5",2,1,1,"Market"]
[null,"Peas Frozen",500,"-","Freezer",1,0,1,"Aldi"]
[null,"Pegs","-","-","Cupboard 4",20,5,1,"Aldi"]
[null,"Pepperoni Pizza","-","-","Freezer",4,0,1,"Aldi"]
[null,"Peppers  Assorted","-","-","Cupboard 5",0,0,0,"Sainsbury"]
[null,"Pork Belly",2000,"-","Freezer",2,1,1,"Butchers"]
[null,"Potatoes 10kg",5000,"-","Cupboard 5",2,1,1,"Tesco"]
[null,"Prawns Fresh",400,"-","Fridge",1,0,1,"Sainsbury"]
[null,"Salmon Fillet X4",400,"-","Freezer",4,0,1,"Tesco"]
[null,"Shreadies Malt",750,"-","Cupboard 1",1,0,1,"Lidl"]
[null,"Simplicity Pads","-","-","Bathroom",1,0,{"$f":"IF(F71-G71>0,1,0)","v":1},"Sainsbury"]
[null,"Sugar Tate Lyle",1000,"-","Cupboard 1",1,1,0,"Aldi"]
[null,"Tea Tetley 240","-","-","Cupboard 1",1,0,1,"Sainsbury"]
[null,"Toilet Roll Tescos 16","-","-","Garage Shed",12,4,1,"Lidl"]
[null,"Tomato Sauce Heinz","-",200,"Cupboard 2",1,0,1,"Tesco"]
[null,"Tomatos Chopped Tin",210,"-","Cupboard 2",1,0,1,"Sainsbury"]
[null,"Tomatos Fresh",300,"-","Fridge",1,0,1,"Market"]
[null,"Wheatabix X24","-","-","Cupboard 1",8,6,1,"Sainsbury"]
[null,"Wine","-","-","Garage Shed",3,0,1,"Sainsbury"]
[null,null,"-","-",null,1,0,1,null,null,null,null,null,null,null,null,null,null,null,2]
[null,null,"-","-",null,1,0,1]
[null,null,"-","-",null,1,0,1]
[null,null,"-","-",null,1,0,1]
[null,null,"-","-",null,1,0,1]
[null,null,"-","-",null,1,0,1]
[null,null,"-","-",null,1,0,1]
[null,null,"-","-",null,1,0,1]
[null,null,"-","-",null,1,0,1]
[null,null,"-","-",null,1,0,1]
[null,null,"-","-",null,1,0,1]
[null,null,"-","-",null,1,0,1]
[null,null,"-","-",null,1,0,1]
[null,null,"-","-",null,1,0,1]
[null,null,"-","-",null,1,0,1]
[null,null,"-","-",null,1,0,1]
[null,null,"-","-",null,1,0,1]
[null,null,"-","-",null,1,0,1]
[null,null,"-","-",null,1,0,1]
[null,null,"-","-",null,1,0,1]
[null,null,"-","-",null,1,0,1]
[null,null,"-","-",null,1,0,1]
[null,null,"-","-",null,1,0,1]
[null,null,"-","-",null,1,0,1]
[null,null,"-","-",null,1,0,1]
[null,null,"-","-",null,1,0,1]
[null,null,"-","-",null,1,0,1]
[null,null,"-","-",null,1,0,1]
[null,null,"-","-",null,1,0,1]
[null,null,"-","-",null,1,0,1]
[null,null,"-","-",null,1,0,1]
[null,null,"-","-",null,1,0,1]
[null,null,"-","-",null,1,0,1]
[null,null,"-","-",null,1,0,1]
[null,null,"-","-",null,1,0,1]
[null,null,"-","-",null,1,0,1]
[null,null,"-","-",null,1,0,1]
[null,null,"-","-",null,1,0,1]
[null,null,"-","-",null,1,0,1]
[null,null,"-","-",null,1,0,1]
[null,null,"-","-",null,1,0,1]
[null,null,"-","-",null,1,0,1]
[null,null,"-","-",null,1,0,1]
[null,null,"-","-",null,1,0,1]
[null,null,"-","-",null,1,0,1]
[null,null,"-","-",null,1,0,1]
[null,null,"-","-",null,1,0,1]
[null,null,"-","-",null,1,0,1]
[null,null,"-","-",null,1,0,1]
[null,null,"-","-",null,1,0,1]
[null,null,"-","-",null,1,0,1]
[null,null,"-","-",null,1,0,1]
[null,null,"-","-",null,1,0,1]
[null,null,"-","-",null,1,0,1]
[null,null,"-","-",null,1,0,1]
[null,null,"-","-",null,1,0,{"$f":"IF(F135-G135>0,1,0)","v":1}]
[null,null,"-","-",null,1,0,1]
[null,null,"-","-",null,1,0,1]
[null,null,"-","-",null,1,0,1]
[null,null,"-","-",null,1,0,1]
[null,null,"-","-",null,1,0,1]
[null,null,"-","-",null,1,0,1]
[null,null,"-","-",null,1,0,1]
[null,null,"-","-",null,1,0,1]
[null,null,"-","-",null,1,0,1]
[null,null,"-","-",null,1,0,1]
[null,null,"-","-",null,1,0,1]
[null,null,"-","-",null,1,0,1]
[null,null,"-","-",null,1,0,1]
[null,null,"-","-",null,1,0,1]
[null,null,"-","-",null,1,0,1]
[null,null,"-","-",null,1,0,1]
[null,null,"-","-",null,1,0,1]
[null,null,"-","-",null,1,0,1]
[null,null,"-","-",null,1,0,1]
[null,null,"-","-",null,1,0,1]
[null,null,"-","-",null,1,0,1]
[null,null,"-","-",null,1,0,1]
[null,null,"-","-",null,1,0,1]
[null,null,"-","-",null,1,0,1]
[null,null,"-","-",null,1,0,1]
[null,null,"-","-",null,1,0,1]
[null,null,"-","-",null,1,0,1]
[null,null,"-","-",null,1,0,1]
[null,null,"-","-",null,1,0,1]
[null,null,"-","-",null,1,0,1]
[null,null,"-","-",null,1,0,1]
[null,null,"-","-",null,1,0,1]
[null,null,"-","-",null,1,0,1]
[null,null,"-","-",null,1,0,1]
[null,null,"-","-",null,1,0,1]
[null,null,"-","-",null,1,0,1]
[null,null,"-","-",null,1,0,1]
[null,null,"-","-",null,1,0,1]
[null,null,"-","-",null,1,0,1]
[null,null,"-","-",null,1,0,1]
[null,null,"-","-",null,1,0,1]
[null,null,"-","-",null,1,0,1]
[null,null,"-","-",null,1,0,1]
[null,null,"-","-",null,1,0,1]
[null,null,"-","-",null,1,0,1]
[null,null,"-","-",null,1,0,1]
[null,null,"-","-",null,1,0,1]
[null,null,"-","-",null,1,0,1]
[null,null,"-","-",null,1,0,1]
[null,null,"-","-",null,1,0,1]
[null,null,"-","-",null,1,0,1]
[null,null,"-","-",null,1,0,1]
[null,null,"-","-",null,1,0,1]
[null,null,"-","-",null,1,0,1]
[null,null,"-","-",null,1,0,1]
[null,null,"-","-",null,1,0,1]
[null,null,"-","-",null,1,0,1]
[null,null,"-","-",null,1,0,1]
[null,null,"-","-",null,1,0,1]
[null,null,"-","-",null,1,0,1]
[null,null,"-","-",null,1,0,1]
[null,null,"-","-",null,1,0,1]
[null,null,"-","-",null,1,0,1]
[null,null,"-","-",null,1,0,{"$f":"IF(F199-G199>0,1,0)","v":1}]
[null,null,"-","-",null,1,0,1]
[null,null,"-","-",null,1,0,1]
[null,null,"-","-",null,1,0,1]
[null,null,"-","-",null,1,0,1]
[null,null,"-","-",null,1,0,1]
[null,null,"-","-",null,1,0,1]
[null,null,"-","-",null,1,0,1]
[null,null,"-","-",null,1,0,1]

{"sheet":"Lists","index":1,"n_rows":76,"n_cols":5,"rows_kept":76,"cut":false,"hidden":false,"merged":[[1,2,2,6],[4,4,4,6],[5,4,9,6],[10,4,18,6]]}
[]
[null,null,"Pantry Stock & Shopping List     By Alex@Rocketwaveuk"]
[]
[]
[null,null,"DROP DOWN LISTS HELP",null,"General Description And Useage"]
[null,null,null,null,"This is an aid to help anyone organise and plan their Shopping and Cupboard Storage, It works in 3 main ways ,( 1) to plan your shopping needs , (2) to organise your cupboards, (3) to help you when you shop.  PLEASE NOTE ! You cannot Edit \"Shopping Products\" Only Edit \"Stock List\""]
[null,null,"Shops"]
[null,null,"-"]
[null,null,"Aldi"]
[null,null,"Asda"]
[null,null,"Barclays",null,"You Can use it just as a shopping list by setting restock levels to all zero`s and stock to 1 or zero if you require that item. Or for full use then use restock levels and Stock to the amount you have  in  your cupboards,   this way  you  can always  tell  the amounts you have used so far.  and can plan your meals even when not at home      The restock levels will tell you when you need to buy that item when shopping but using the Shop filter set to Zero and the Available From sorted Assending.                        If You Require Help Contact alex@rocketwaveuk.com"]
[null,null,"Butchers"]
[null,null,"Chemist"]
[null,null,"Co-Op"]
[null,null,"Farm Shop"]
[null,null,"Lidl"]
[null,null,"Market"]
[null,null,"Post Office"]
[null,null,"Sainsbury"]
[null,null,"The Spice Rack"]
[null,null,"Tesco"]
[null,null,"Toms Bakery"]
[]
[]
[null,null,"Grams"]
[null,null,"-"]
[null,null,5]
[null,null,10]
[null,null,25]
[null,null,30]
[null,null,50]
[null,null,100]
[null,null,200]
[null,null,210]
[null,null,300]
[null,null,320]
[null,null,400]
[null,null,500]
[null,null,600]
[null,null,750]
[null,null,1000]
[null,null,2000]
[null,null,3000]
[null,null,5000]
[]
[]
[null,null,"Mltr"]
[null,null,"-"]
[null,null,5]
[null,null,10]
[null,null,50]
[null,null,100]
[null,null,200]
[null,null,250]
[null,null,300]
[null,null,500]
[null,null,720]
[null,null,1000]
[null,null,2000]
[null,null,4000]
[null,null,5000]
[]
[]
[null,null,"Location"]
[null,null,"-"]
[null,null,"Bathroom"]
[null,null,"Cupboard 1"]
[null,null,"Cupboard 2"]
[null,null,"Cupboard 3"]
[null,null,"Cupboard 4"]
[null,null,"Cupboard 5"]
[null,null,"Freezer"]
[null,null,"Fridge"]
[null,null,"Garage Shed"]
[null,null,"Pantry"]
[null,null,"Purse Wallet"]